[Event "3. Open Bohumin 2020"]
[Site "Bohumin"]
[Date "2020.07.25"]
[Round "8.13"]
[White "Nytra, Ondrej"]
[Black "Posluszny, Tomasz"]
[Result "0-1"]
[ECO "B92"]
[WhiteElo "2150"]
[BlackElo "1977"]
[Annotator "RC"]
[PlyCount "66"]
[EventDate "2020.07.18"]
[EventType "swiss"]
[EventCountry "CZE"]
[SourceTitle "playchess.com"]
[Source "ChessBase"]
[SourceQuality "1"]
[TimeControl "40/5400+30:900+30"]

1. e4 {[%emt 0:00:00]} c5 {[%emt 0:00:05]} 2. Nf3 {[%emt 0:00:00]} d6 {[%emt 0:00:21]} 3. d4 {[%emt 0:00:00]} cxd4 {[%emt 0:00:06]} 4. Nxd4 {[%emt 0:00:00]} Nf6 {[%emt 0:00:31]} 5. Nc3 {[%emt 0:00:00]} a6 {[%emt 0:00:22]} 6. Be2 {[%emt 0:00:00]} e5 {[%emt 0:00:12]} 7. Nb3 {[%emt 0:00:00]} Be7 {[%emt 0:01:08]} 8. O-O {[%emt 0:00:02]} O-O {[%emt 0:00:17]} 9. Kh1 {[%emt 0:00:03]} Nc6 {[%emt 0:00:44]} 10. Be3 {[%emt 0:02:55]} Be6 {[%emt 0:03:27]} 11. f4 {[%emt 0:00:34]} exf4 {[%emt 0:10:01]} 12. Bxf4 {[%emt 0:00:37]} Ne5 {[%emt 0:01:33]} 13. Nd4 {[%emt 0:00:28]} Re8 {[%emt 0:13:18]} 14. Nxe6 {[%emt 0:06:27]} fxe6 {[%emt 0:00:07]} 15. Bxe5 {[%emt 0:00:02]} dxe5 {[%emt 0:00:11]} 16. Bc4 {[%emt 0:00:08]} Bb4 {[%emt 0:08:10]} 17. Qe2 {[%emt 0:02:58]} Bxc3 {[%emt 0:08:09]} 18. bxc3 {[%emt 0:03:44]} Rc8 {[%emt 0:01:19]} 19. Rf3 {[%emt 0:03:45]} Qc7 {[%emt 0:01:50]} 20. Bb3 {[%emt 0:00:04]} Qc6 {[%emt 0:01:04]} 21. Re3 {[%emt 0:01:48]} Rf8 {[%emt 0:08:23]} 22. h3 {[%emt 0:02:22]} Nd7 {[%emt 0:03:38]} 23. Qh5 {[%emt 0:01:18]} Rf6 {[%emt 0:03:16]} 24. Rd1 {[%emt 0:02:46]} Rcf8 {[%emt 0:04:04]} 25. Kh2 {[%emt 0:00:15]} Qb6 {[%emt 0:07:58]} 26. Rg3 {[%emt 0:21:07]} Qc6 {[%emt 0:07:38]} 27. Rg4 {[%emt 0:20:17]} Rf4 {[%emt 0:07:55]} 28. Rg5 {[%emt 0:24:36]} Kh8 {[%emt 0:02:04]} 29. Rd3 {[%emt 0:04:35]} Nf6 {[%emt 0:01:04]} 30. Qd1 {[%emt 0:00:01]} Nxe4 {[%emt 0:00:47]} 31. Rxe5 {[%emt 0:03:32]} Qc7 {[%emt 0:01:03]} 32. Rxe4 {[%emt 0:01:01]} Rf1+ {[%emt 0:00:55]} 33. g3 {[%emt 0:00:18]} R8f2# {[%emt 0:00:08]} 0-1